Cogmind - Beta 16.1 @@@ ROGUE MODE // 2026.03.07 @ 17:42:20 Player: SunShine214 Result: Destroyed by S-27 Virus with Autogun Performance ------------- Evolutions (4) 2000 Regions Visited (9) 1800 Robots Destroyed (161) 805 Value Destroyed (6524) 6524 Prototype IDs (14) 280 Alien Tech Used (0) 0 Bonus (2135) 2135 TOTAL SCORE: 13544 Bonus ------- High Alert Combat Kills 576 Follower Combat Kills 159 Entered Garrisons 400 Used RIF Installer 1000 Cogmind --------- Core Integrity 0/850 Matter 300/300 Energy 100/100 System Corruption 9% Temperature Cool (0) Movement Walking (190) Ox1 Location -6/Garrison Parts ------- > --- POWER (2) -------- (None) > --- PROPULSION (3) --- Light Treads Carbon-fiber Leg > --- UTILITY (7) ------ Armored Scrap Engine Large Storage Unit Improved Signal Interpreter Hacking Suite > --- WEAPON (3) ------- Shotgun Thermal Construct/G Maul > --- INVENTORY (15) --- Heavy Ion Engine Large Storage Unit Transmission Jammer Hacking Suite Authchip [Processor] Authchip [Armor] Relay Coupler [Swarmer] (29) Relay Coupler [Grunt] (34) Improved Remote Datajack Peak State ------------ > --- POWER ------------ Light Angular Momentum Engine Light Quantum Reactor > --- PROPULSION ------- Treaded Carbon-Biometal Exoskeleton > --- UTILITY ---------- Armored Scrap Engine Large Storage Unit Improved Signal Interpreter Advanced Phase Shifter Thermal Shield Hacking Suite > --- WEAPON ----------- Heavy Phase Cannon Improved Remote Datajack Shotgun Thermal Construct/G > --- INVENTORY -------- Heavy Ion Engine Fission Core Large Storage Unit Improved Sensor Array Transmission Jammer Hacking Suite Authchip [Processor] Authchip [Armor] Relay Coupler [Grunt] Enhanced Autogun Shock Bomb Launcher Mini Grenade Launcher Missile Launcher Maul Axe [Rating: 90] Favorites ----------- Power Nuclear Core Engine Heavy Ion Engine Power Core Nuclear Core Reactor Cold Fusion Reactor Propulsion Improved Treads Treads Improved Treads Leg Carbon-fiber Leg Flight Unit Nuclear Pulse Thruster Utility Large Storage Unit Device Structural Scanner Storage Large Storage Unit Processor Improved Signal Interpreter Hackware Hacking Suite Protection Improved Utility Shielding Weapon Spread Laser Energy Gun Spread Laser Energy Cannon Improved EM Pulse Cannon Ballistic Gun Enhanced Autogun Launcher Missile Launcher Special Weapon Improved Remote Datajack Impact Weapon Maul Slashing Weapon Axe Build | -11 -10 -9 -8 -8 -8 -6 -6 -6 -6 ------- Run | Yrd Mat Mat Mat Sto Rec Fac Gar Fac Gar Slots Evolved 8 | . . 2 2 . . 4 . . . Power 1 | . . . . . . 1 . . . Propulsion 1 | . . . 1 . . . . . . Utility 5 | . . 2 1 . . 2 . . . Weapon 1 | . . . . . . 1 . . . Parts Attached 91 | 7 12 15 11 7 3 7 14 3 12 Power 14 | 1 1 2 . 1 1 1 5 1 1 Engine 5 | 1 . 1 . 1 . . 2 . . Core 6 | . 1 1 . . 1 . 1 1 1 Reactor 3 | . . . . . . 1 2 . . Propulsion 18 | 2 2 2 4 2 . . . . 6 Treads 14 | 2 2 2 3 2 . . . . 3 Leg 2 | . . . . . . . . . 2 Wheel . | . . . . . . . . . . Hover . | . . . . . . . . . . Flight 2 | . . . 1 . . . . . 1 Utility 32 | 2 2 8 3 2 1 4 6 1 3 Device 19 | 1 1 3 2 1 1 4 5 . 1 Storage 3 | 1 1 1 . . . . . . . Processor 3 | . . 1 1 . . . . 1 . Hackware 2 | . . . . . . . 1 . 1 Protection 5 | . . 3 . 1 . . . . 1 Artifact . | . . . . . . . . . . Weapon 27 | 2 7 3 4 2 1 2 3 1 2 Energy Gun 11 | 2 5 2 1 . . . . 1 . Energy Cannon 2 | . . . . . . 1 1 . . Ballistic Gun 6 | . . 1 1 2 . . . . 2 Ballistic Cannon . | . . . . . . . . . . Launcher 3 | . . . 1 . 1 1 . . . Special Weapon 2 | . 1 . . . . . 1 . . Impact Weapon 1 | . . . 1 . . . . . . Slashing Weapon 2 | . 1 . . . . . 1 . . Piercing Weapon . | . . . . . . . . . . Special Melee Weapon . | . . . . . . . . . . Unidentified Prototypes 8 | . . 2 1 2 1 1 . 1 . Parts Lost 47 | . 1 6 3 1 2 . 11 . 23 Power 8 | . . . . . . . 4 . 4 Propulsion 13 | . . 3 . 1 2 . . . 7 Utility 12 | . . 2 2 . . . 3 . 5 Weapon 14 | . 1 1 1 . . . 4 . 7 Highest Loss Streak 14 | . 1 3 2 1 1 . 3 . 14 To Critical Strikes 1 | . . . . . . . . . 1 Average Backups 12 | 1 9 14 14 14 11 12 14 13 10 Power 1 | . 1 1 1 1 1 2 1 1 1 Propulsion 2 | . 2 3 3 5 3 . . . . Utility 5 | . 1 4 5 5 5 6 7 8 7 Weapon 3 | 1 3 5 4 3 2 3 4 3 1 Tool/Special . | . . . . . . . . . . Unused Backups 26 | . 3 4 1 2 6 1 3 . 6 Power 2 | . . 2 . . . . . . . Propulsion 10 | . 2 2 . 1 5 . . . . Utility 11 | . . . 1 . 1 1 2 . 6 Weapon 2 | . 1 . . 1 . . . . . Tool/Special 1 | . . . . . . . 1 . . Average Slot Usage (%) 86 | . 99 96 87 98 83 75 75 78 80 Engine 4 | . 3 4 . 4 5 5 5 . . Core 5 | . 10 6 9 4 3 2 1 12 9 Reactor 1 | . . . . . . 3 4 . . Treads 13 | . 28 19 18 26 13 . . 6 11 Flight 1 | . . . . . 2 2 3 . . Device 16 | . 14 23 20 23 12 16 17 19 9 Storage 8 | . 14 11 9 9 9 6 6 6 6 Processor 5 | . . 2 7 9 9 6 6 6 6 Hackware 1 | . . . . . . . 5 6 10 Protection 4 | . . 6 4 3 9 6 . . 3 Energy Gun 10 | . 24 21 15 8 3 4 4 5 1 Energy Cannon 1 | . . . . . . 5 3 . . Ballistic Gun 3 | . . . 1 8 8 1 2 . 4 Launcher 1 | . . . . . 3 4 . 6 1 Impact Weapon 1 | . . . . . 2 1 5 . 2 Peak Build Rating 90 | 7 15 19 30 33 49 74 90 70 70 Average Rating 40 | 5 10 17 24 30 39 64 74 67 59 On Entrance 34 | . 7 14 17 28 33 47 74 59 70 Avg Prop Armor Cover (%) 9 | . . . . . 10 . . . 8 Naked Turns . | . . . . . . . . . . Heaviest Build 71 | 13 32 41 40 38 41 61 71 53 53 Greatest Support 68 | 40 46 46 68 65 64 51 51 37 60 Greatest Overweight (x) 11 | . . 1 1 . 11 2 2 1 6 Average Overweight (x) . | . . . . . . 1 1 1 . Largest Inventory Capacity 15 | 8 15 15 15 15 15 15 15 15 15 Average Capacity 14 | 7 12 15 15 15 15 15 15 15 15 Most Carried 15 | 3 15 15 15 15 15 15 15 15 15 Average Carried 12 | 1 9 14 14 14 11 12 14 13 10 Final Capacity 15 | 8 15 15 15 15 15 15 15 15 15 Final Carried 15 | 3 15 14 15 15 10 15 14 15 9 Scrap Engine Consumption 47 | . . . . . 19 8 10 6 4 Constructs Created 6 | . . . . . 2 2 . . 2 Constructs Modified 11 | . . . . . 4 3 4 . . Class Distribution -------------------- 75% | Mutant 10% | Tank 8% | Construct Dominant Class ---------------- Mutant | -10/Materials Mutant | -9/Materials Mutant | -8/Materials Mutant | -8/Storage Mutant | -8/Recycling Tank | -6/Factory Mutant | -6/Garrison Mutant | -6/Factory Scavenger-Mutant | -6/Garrison Resources | -11 -10 -9 -8 -8 -8 -6 -6 -6 -6 ----------- Run | Yrd Mat Mat Mat Sto Rec Fac Gar Fac Gar Matter Collected 2490 | 237 120 189 81 401 346 244 518 84 270 Remotely . | . . . . . . . . . . Salvage Created 5590 | 141 570 1015 153 630 392 401 1781 83 424 Parts 252 | 4 35 91 7 33 13 15 28 8 18 Haulers Intercepted 6 | . . 4 . 2 . . . . . Recyclers Shooed 4 | . . 3 . . 1 . . . . Parts Field Recycled . | . . . . . . . . . . Retrieved Matter . | . . . . . . . . . . Parts Self-Destructed . | . . . . . . . . . . Prevented . | . . . . . . . . . . Parts Restored . | . . . . . . . . . . Kills | -11 -10 -9 -8 -8 -8 -6 -6 -6 -6 ------- Run | Yrd Mat Mat Mat Sto Rec Fac Gar Fac Gar Combat Hostiles Destroyed 122 | . 10 36 8 13 10 7 28 1 9 Melee 5 | . 2 . . . . . . 1 2 Guns 80 | . 8 36 5 13 8 1 7 . 2 Cannons 6 | . . . . . . 1 5 . . AOE 11 | . . . 3 . 2 3 . . 3 Classes Destroyed 19 | 2 7 2 1 . 3 1 3 . . Worker 7 | . 1 2 . . . 2 . 2 . Builder 3 | . 1 . . 1 . 1 . . . Tunneler 5 | 2 . 1 1 . . 1 . . . Hauler 6 | . . 4 . 2 . . . . . Recycler 5 | 1 2 . . 1 1 . . . . Mechanic 1 | . 1 . . . . . . . . Operator 5 | . 1 2 1 . . 1 . . . Watcher 7 | . 1 4 . . . 2 . . . Swarmer 24 | . 3 18 . 2 1 . . . . Grunt 59 | . 7 13 6 7 1 3 17 . 5 Brawler 2 | . . . . . . . 2 . . Duelist 4 | . . . . . . 1 3 . . Protector 1 | . . . . . 1 . . . . Sentry 19 | . . 5 . 4 4 1 4 . 1 Specialist 2 | . . . 2 . . . . . . Hunter 3 | . . . . . . . 1 . 2 Programmer 4 | . . . . . 1 2 . 1 . Behemoth 2 | . . . . . . . 1 . 1 Scrapper 2 | . . . . . 2 . . . . Best Kill Streak 8 | 2 4 6 5 6 5 8 3 1 3 Combat Bots Only 5 | . 3 4 5 5 5 4 3 1 3 Max Kills in Single Turn 3 | 1 2 2 2 2 1 3 1 1 2 Gunslinging . | . . . . . . . . . . Exploded 2 | . . . 2 . 1 2 . . 2 Melee 1 | . 1 . . . . . . 1 1 Uniques/NPCs Destroyed . | . . . . . . . . . . Combat | -11 -10 -9 -8 -8 -8 -6 -6 -6 -6 -------- Run | Yrd Mat Mat Mat Sto Rec Fac Gar Fac Gar Hostile Shots Fired 967 | . 48 122 62 39 48 39 271 6 332 Missed 309 | . 7 39 8 5 19 17 102 2 110 Hits 658 | . 41 83 54 34 29 22 169 4 222 Melee 4 | . . . . . . . 4 . . Projectile 654 | . 41 83 54 34 29 22 165 4 222 Critical Strikes 15 | . . 1 2 1 1 . 6 . 4 Part Disruptions 1 | . . . . . . 1 . . . Damage Taken 9188 | . 472 1015 954 520 513 253 2518 61 2882 Core 1371 | . 52 195 127 35 99 41 393 16 413 Absorbed by Shields 269 | . . . . . . 13 256 . . Redirected to Shielding 111 | . . . . 11 32 35 33 . . Ignored by Resistances 407 | . . . . . . 15 302 . 90 Regen/Repaired (Parts) 758 | . . . . . . 15 643 . 100 Core Remaining (%) 70 | 100 79 51 . . 52 . . . . Volleys Fired 332 | 11 29 74 19 36 31 22 87 . 23 Largest 3 | 2 2 2 2 2 2 3 2 . 2 Hottest 164 | 90 140 130 130 90 90 164 155 . 56 Shots Fired 629 | 22 52 146 38 72 58 53 154 1 33 Gun 500 | 22 51 146 32 72 44 22 91 . 20 Cannon 80 | . . . . . . 21 59 . . Launcher 41 | . . . 6 . 14 10 . 1 10 Special 8 | . 1 . . . . . 4 . 3 Kinetic 93 | . . . 2 36 27 6 13 . 9 Thermal 429 | 11 40 146 30 36 17 16 122 . 11 Explosive 38 | . . . 6 . 14 10 . 1 7 Electromagnetic 62 | 11 12 . . . . 21 15 . 3 Robot Hit Streak 28 | 14 9 16 16 12 28 10 12 . 17 Robot Miss Streak 8 | 4 5 5 3 6 3 8 6 . 2 Penetration Max . | . . . . . . . . . . Secondary Targets 5 | . . 4 1 . . . . . . Max Gunslinging Chain 1 | . . 1 1 . . . . . . Shots Hit Robots 521 | 16 43 131 30 61 40 28 129 5 38 Core Hits 571 | 4 42 184 56 74 36 36 112 2 25 Critical Kills 1 | . . . . . . . 1 . . Critical Parts Destroyed 2 | . . . . . . . 1 . 1 Critical Strikes 9 | 1 3 . . . . . 3 . 2 Burn 2 | 1 1 . . . . . . . . Meltdown 1 | . . . . . . . 1 . . Corrupt 2 | . 2 . . . . . . . . Smash 2 | . . . . . . . 1 . 1 Sever 2 | . . . . . . . 1 . 1 Melee Attacks 105 | . 8 . 1 3 2 18 29 19 25 Impact 63 | . . . 1 3 2 18 27 . 12 Slashing 42 | . 8 . . . . . 2 19 13 Piercing . | . . . . . . . . . . Sneak Attacks 5 | . . . . . 2 . . 3 . Combat Hostiles . | . . . . . . . . . . Follow-up Attacks . | . . . . . . . . . . Damage Inflicted 12105 | 207 865 1980 1057 1129 1109 1194 2717 250 1597 Guns 6494 | 204 581 1820 443 1129 558 229 1242 . 288 Cannons 1569 | . . . . . . 167 1402 . . Explosions 2943 | . 147 146 610 . 338 798 . . 904 Melee 997 | . 117 . . . 162 . 63 250 405 Ramming 102 | 3 20 14 4 . 51 . 10 . . Kinetic 1165 | . . . 17 567 271 19 160 . 131 Thermal 6407 | 102 575 1966 426 562 287 210 2122 . 157 Explosive 2500 | . . . 610 . 338 798 . . 754 Electromagnetic 934 | 102 153 . . . . 167 362 . 150 Impact 324 | . . . . . 162 . 32 . 130 Slashing 673 | . 117 . . . . . 31 250 275 Piercing . | . . . . . . . . . . Highest Corruption 9 | . . 1 . . . 3 9 9 9 Average Corruption 3 | . . 1 . . . 1 3 9 9 Corruption Purged . | . . . . . . . . . . Corruption Blocked . | . . . . . . . . . . Effects 81 | . . 7 . . . 12 28 16 18 Message Errors 18 | . . 1 . . . 3 5 2 7 Matter Fused 15 | . . 1 . . . 3 5 3 3 Heat Flow Errors 9 | . . 1 . . . 2 4 2 . Energy Discharges 13 | . . 2 . . . 1 5 4 1 Parts Rejected 3 | . . . . . . . 2 . 1 Parts Fused 1 | . . . . . . . . 1 . Data Loss (minor) 8 | . . 1 . . . 2 2 1 2 Data Loss (major) 5 | . . 1 . . . 1 1 1 1 Misfires 3 | . . . . . . . 1 1 1 Alerts 4 | . . . . . . . 2 1 1 Weapon Failures 2 | . . . . . . . 1 . 1 Overload Shots . | . . . . . . . . . . Overflow Damage 309 | . 1 70 . . 11 33 43 51 100 Projectiles 12 | . . . . . . 1 11 . . Explosions 157 | . 1 70 . . 11 32 . . 43 Melee 140 | . . . . . . . 32 51 57 Knockbacks . | . . . . . . . . . . Impact . | . . . . . . . . . . Kinetic . | . . . . . . . . . . Secondary . | . . . . . . . . . . Self-Inflicted Damage 326 | . . 114 81 . 40 42 . . 49 Shots 8 | . . 1 3 . 1 2 . . 1 Rammed 19 | 1 5 1 . . 11 . 1 . . Targets Rammed 21 | 1 5 2 1 . 11 . 1 . . Kicked . | . . . . . . . . . . Crushed 2 | . . 1 1 . . . . . . Highest Temperature 528 | 210 294 340 405 33 42 225 528 283 281 Average Temperature 115 | 103 93 95 150 19 15 76 156 132 128 Received Heat Transfer 2864 | . 216 303 495 252 204 26 627 . 741 Effects 18 | . . 3 1 . . . 12 . 2 Shutdowns 5 | . . . 1 . . . 4 . . Energy Bleed 4 | . . . . . . . 3 . 1 Interference 4 | . . 2 . . . . 1 . 1 Matter Decay 1 | . . . . . . . 1 . . Short Circuit 2 | . . 1 . . . . 1 . . Damage (minor) 1 | . . . . . . . 1 . . Damage (core) 1 | . . . . . . . 1 . . Siege Activations . | . . . . . . . . . . Martial Activations . | . . . . . . . . . . Shielding Activations . | . . . . . . . . . . Robots Disrupted 1 | . . . . . . . 1 . . Combat Hostiles 1 | . . . . . . . 1 . . Robots Corrupted 1 | . . . . . . . . . 1 Combat Hostiles 1 | . . . . . . . . . 1 Parts Fried 9 | . . . . . . 2 5 . 2 Impact Corruptions 3 | . . . . . . . 1 . 2 Robots Melted 19 | . . . . . . 3 16 . . Combat Hostiles 18 | . . . . . . 2 16 . . Parts Melted 75 | 2 2 . 1 . . 9 61 . . Heat Transferred 19645 | 370 1017 2380 535 690 322 2050 11985 . 296 Parts Sabotaged . | . . . . . . . . . . Parts Stolen . | . . . . . . . . . . Parts Stripped . | . . . . . . . . . . Power Chain Reactions 2 | . 2 . . . . . . . . Alert | -11 -10 -9 -8 -8 -8 -6 -6 -6 -6 ------- Run | Yrd Mat Mat Mat Sto Rec Fac Gar Fac Gar Maximum Alert Level 4 | . . 2 . 1 . 1 4 3 2 Low Security (%) 62 | 100 100 39 100 97 100 45 3 . . Level 1 14 | . . 36 . 2 . 54 7 . . Level 2 14 | . . 23 . . . . 25 72 100 Level 3 5 | . . . . . . . 37 27 . Level 4 3 | . . . . . . . 25 . . Level 5 . | . . . . . . . . . . High Security . | . . . . . . . . . . Max Security . | . . . . . . . . . . Peak Influence 1460 | 10 113 590 159 204 95 370 1460 739 541 Initial 739 | . . 20 159 46 75 370 158 739 415 Average 238 | . 25 255 83 60 18 187 844 662 491 Influence Increases 5062 | 15 380 1082 260 402 284 845 1402 77 315 Destroy 0b10 Robot/C 2460 | . 200 720 160 260 140 140 640 20 180 Destroy 0b10 Robot/NC 200 | 15 35 65 10 20 10 35 . 10 . Destroy Leader 406 | . 42 146 30 64 . 44 50 10 20 Allied During Kill 18 | . . . . . . . 18 . . Successful Hack 142 | . 19 8 8 23 39 19 26 . . Disable Machine 330 | . 45 30 15 30 30 150 15 15 . Anti-Garrison Action 400 | . . . . . . . 350 . 50 Destroy Structure 471 | . 39 23 37 5 65 92 138 22 50 Advance Influence 350 | . . . . . . 350 . . . Partial Spotted 15 | . . . . . . . 15 . . Lose Combat Pursuer 270 | . . 90 . . . 15 150 . 15 Influence Decreases 4602 | 15 332 751 528 319 429 667 219 893 449 Entered New Map 1380 | . . 28 220 65 119 29 69 671 179 Time Decay 2413 | 15 332 513 278 244 291 518 . 222 . Search Patrol Dispatched 100 | . . . . . . 100 . . . Lost Part 459 | . . 60 30 10 19 . 110 . 230 Lost Ally 100 | . . . . . . 20 40 . 40 Purge Threat 150 | . . 150 . . . . . . . Squads Dispatched 19 | . 1 3 4 4 . 4 . 3 . Investigation 5 | . . 3 2 . . . . . . Extermination 3 | . . . . . . 2 . 1 . Reinforcement 7 | . 1 . 2 1 . 2 . 1 . Assault 1 | . . . . . . . . 1 . Garrison 3 | . . . . 3 . . . . . Intercept . | . . . . . . . . . . Searches Triggered 1 | . . . . . . 1 . . . Construction Impeded 3 | . . . . 1 . 1 . 1 . Haulers Reinforced . | . . . . . . . . . . Active Scanning Responses . | . . . . . . . . . . Cargo Convoy Interrupts . | . . . . . . . . . . Stealth | -11 -10 -9 -8 -8 -8 -6 -6 -6 -6 --------- Run | Yrd Mat Mat Mat Sto Rec Fac Gar Fac Gar Distress Signals 11 | . 1 4 . 3 1 2 . . . Communications Jammed . | . . . . . . . . . . Distress Signals . | . . . . . . . . . . Times Spotted 197 | . 23 55 12 16 10 14 44 1 22 Peak Tracking Total 11 | . 4 5 5 6 5 4 6 1 11 Tactical Retreats 11 | . . 4 . . . 1 5 . 1 Traps | -11 -10 -9 -8 -8 -8 -6 -6 -6 -6 ------- Run | Yrd Mat Mat Mat Sto Rec Fac Gar Fac Gar Traps Triggered 15 | . 1 1 1 . . 1 10 . 1 Indirectly . | . . . . . . . . . . Trap Hack Attempts . | . . . . . . . . . . Triggered . | . . . . . . . . . . Disarmed . | . . . . . . . . . . Reprogrammed . | . . . . . . . . . . Reused . | . . . . . . . . . . Traps Extracted . | . . . . . . . . . . Installed . | . . . . . . . . . . Triggered . | . . . . . . . . . . Machines | -11 -10 -9 -8 -8 -8 -6 -6 -6 -6 ---------- Run | Yrd Mat Mat Mat Sto Rec Fac Gar Fac Gar Machines Disabled 27 | . 3 2 1 2 2 10 5 1 1 Max in Single Turn 4 | . 2 2 1 1 1 4 1 1 1 Garrison Relay 8 | . . . . . . . 7 . 1 Machines Repaired . | . . . . . . . . . . Machines Dismantled . | . . . . . . . . . . Machines Sabotaged . | . . . . . . . . . . Overloaded Fab Kills . | . . . . . . . . . . Hacking | -11 -10 -9 -8 -8 -8 -6 -6 -6 -6 --------- Run | Yrd Mat Mat Mat Sto Rec Fac Gar Fac Gar Machines Accessed 43 | . 5 7 3 4 13 7 2 2 . Terminals 28 | . 5 6 3 4 6 2 2 . . Fabricators 1 | . . . . . . 1 . . . Repair Stations . | . . . . . . . . . . Recycling Units 8 | . . . . . 6 2 . . . Scanalyzers 3 | . . 1 . . . 1 . 1 . Garrison Access 2 | . . . . . . 1 . 1 . Total Hacks 93 | . 13 15 8 10 27 13 4 3 . Successful 36 | . 3 6 1 4 13 5 2 2 . Failed 54 | . 10 9 7 6 13 7 2 . . Catastrophic 13 | . 1 3 1 1 4 2 1 . . Database Lockouts 3 | . . . . . 1 1 . 1 . Manual 31 | . 5 11 8 1 5 1 . . . Terminals 62 | . 13 13 8 10 12 2 4 . . Fabricators 1 | . . . . . . 1 . . . Repair Stations . | . . . . . . . . . . Recycling Units 16 | . . . . . 13 3 . . . Scanalyzers 9 | . . 2 . . . 5 . 2 . Garrison Access 3 | . . . . . . 2 . 1 . Terminal Hacks 22 | . 3 3 1 4 9 . 2 . . Record 1 | . . . . . 1 . . . . Part Schematic 4 | . . . . 1 3 . . . . Prototype ID Bank 1 | . . . . . 1 . . . . Open Door 2 | . . . . 2 . . . . . Branch Access Points 3 | . . 1 1 1 . . . . . Emergency Access Points 1 | . . . . . . . 1 . . Unreport Threat 1 | . . 1 . . . . . . . Reinforcement Status 1 | . 1 . . . . . . . . Hauler Manifests 3 | . 1 1 . . 1 . . . . Registered Components 1 | . 1 . . . . . . . . Zone Layout 1 | . . . . . 1 . . . . Security Stations 1 | . . . . . . . 1 . . Release Object 2 | . . . . . 2 . . . . Fabricator Hacks 1 | . . . . . . 1 . . . Build 1 | . . . . . . 1 . . . Repair Station Hacks . | . . . . . . . . . . Recycling Unit Hacks 4 | . . . . . 4 . . . . Retrieve Matter 1 | . . . . . 1 . . . . Retrieve Components 3 | . . . . . 3 . . . . Scanalyzer 6 | . . 2 . . . 3 . 1 . Retrieve Study 6 | . . 2 . . . 3 . 1 . Garrison Access Hacks 2 | . . . . . . 1 . 1 . Unlock Access 2 | . . . . . . 1 . 1 . Unauthorized Hacks 1 | . . 1 . . . . . . . Terminals 1 | . . 1 . . . . . . . Assimilate 1 | . . 1 . . . . . . . Fabricators . | . . . . . . . . . . Repair Stations . | . . . . . . . . . . Recycling Units . | . . . . . . . . . . Scanalyzers . | . . . . . . . . . . Garrison Access . | . . . . . . . . . . Data Cores Recovered 2 | . . 1 . . . 1 . . . Used 1 | . . . . . . 1 . . . Hacking Detections 34 | . 4 6 3 3 8 6 2 2 . Full Trace Events 13 | . 2 2 1 . 7 . 1 . . Feedback Events 2 | . . 1 . . . . 1 . . Corruption 2 | . . 1 . . . . 1 . . Feedback Blocked . | . . . . . . . . . . Robot Schematics Acquired . | . . . . . . . . . . Robots Built . | . . . . . . . . . . Authchips . | . . . . . . . . . . Time . | . . . . . . . . . . Total Robot Build Rating . | . . . . . . . . . . Part Schematics Acquired 4 | . . . . 1 3 . . . . Parts Built 2 | . . . . . . 2 . . . Authchips . | . . . . . . . . . . Time 128 | . . . . . . 128 . . . Total Part Build Rating 16 | . . . . . . 16 . . . Part Studies Acquired 6 | . . 2 . . . 3 . 1 . Parts Repaired . | . . . . . . . . . . Time . | . . . . . . . . . . Parts Recycled . | . . . . . . . . . . Recycled Matter . | . . . . . . . . . . Retrieved Matter . | . . . . . . . . . . Retrieved Components 9 | . . . . . 9 . . . . Parts Scanalyzed . | . . . . . . . . . . Part Schematics Acquired . | . . . . . . . . . . Parts Damaged . | . . . . . . . . . . Bothacking | -11 -10 -9 -8 -8 -8 -6 -6 -6 -6 ------------ Run | Yrd Mat Mat Mat Sto Rec Fac Gar Fac Gar Used RIF Installer 2 | . . . . . . . 1 . 1 Program Shield 1 | . . . . . . . . . 1 Robots Hacked 2 | . . . . . . . . . 2 Non-combat . | . . . . . . . . . . Combat 2 | . . . . . . . . . 2 Robot Hacks Applied 2 | . . . . . . . . . 2 parse_system 1 | . . . . . . . . . 1 formatsys_high 1 | . . . . . . . . . 1 Relay Couplers Released 28 | . . . . . . . 24 . 4 Machine Destruction 28 | . . . . . . . 24 . 4 Attached 1 | . . . . . . . . . 1 Fabnet Peak Effective % . | . . . . . . . . . . Robots Rewired 3 | . . . . . . . 2 . 1 Allies Hacked . | . . . . . . . . . . Hacks Repelled . | . . . . . . . . . . Allies | -11 -10 -9 -8 -8 -8 -6 -6 -6 -6 -------- Run | Yrd Mat Mat Mat Sto Rec Fac Gar Fac Gar Total Allies 6 | . . . . . . . 4 . 2 Largest Group 2 | . . . . . . . 2 . 1 Highest-Rated Group 157 | . . . . . . . 157 . 32 Highest-Rated Ally 95 | . . . . . . . 95 . 32 Total Orders 3 | . . . . . . 3 . . . EXPLORE 2 | . . . . . . 2 . . . RETURN 1 | . . . . . . 1 . . . Ally Attacks 27 | . . . . . . . 22 . 5 Total Damage 831 | . . . . . . . 673 . 158 Kills 5 | . . . . . . . 5 . . Allies Corrupted 1 | . . . . . . . 1 . . Allies Melted . | . . . . . . . . . . Intel | -11 -10 -9 -8 -8 -8 -6 -6 -6 -6 ------- Run | Yrd Mat Mat Mat Sto Rec Fac Gar Fac Gar Active Infowar (turns) 6148 | 3 1377 1621 610 584 921 413 4 474 141 Sensors 2021 | . . 872 270 . . 260 4 474 141 Structural 4933 | . 1297 1621 510 584 921 . . . . Seismic 83 | 3 80 . . . . . . . . Machine Analysis 324 | . . 324 . . . . . . . Jamming 153 | . . . . . . 153 . . . Robot Analysis Total . | . . . . . . . . . . Derelict Logs Recovered . | . . . . . . . . . . Drone Launches 2 | . . . . . . 2 . . . Drone Recoveries . | . . . . . . . . . . Exploration | -11 -10 -9 -8 -8 -8 -6 -6 -6 -6 ------------- Run | Yrd Mat Mat Mat Sto Rec Fac Gar Fac Gar Turns Passed 10423 | 122 1377 1621 610 584 2444 1434 1283 478 470 Spaces Moved 5224 | 51 744 652 281 220 1017 828 886 353 192 Core 11 | 6 . . . . 5 . . . . Treads 3099 | 45 744 652 281 220 574 . 61 353 169 Legs 350 | . . . . . . . 330 . 20 Wheels 451 | . . . . . . 451 . . . Hover . | . . . . . . . . . . Flight 1313 | . . . . . 438 377 495 . 3 Fastest Speed 43 | 50 160 160 155 153 122 78 43 113 113 Average Speed 139 | 147 160 176 173 153 156 106 94 113 158 Slowest Speed 600 | 160 160 240 240 158 600 192 113 113 520 Overloaded Moves . | . . . . . . . . . . Propulsion Burnouts . | . . . . . . . . . . Robots Hopped . | . . . . . . . . . . Potential Cave-ins . | . . . . . . . . . . Cave-ins Triggered . | . . . . . . . . . . Exploration Rate (%) 47 | 4 95 56 19 46 97 29 94 9 25 Regions Visited 9 Branch Regions 2 Pre-discovered Areas . | . . . . . . . . . . Known Exits Taken 5 | . . . 1 1 1 1 . 1 . Unknown Exits Taken 3 | 1 1 1 . . . . . . . Scrap Searched . | . . . . . . . . . . Spaces Dug 47 | . 1 . . 1 12 15 1 13 4 Terrain Destroyed 411 | . 40 22 38 1 116 101 11 29 53 Melee 34 | . . . . 1 . 15 1 13 4 Projectile 11 | . 1 . . . . . 10 . . AOE 366 | . 39 22 38 . 116 86 . 16 49 Terrain Rammed . | . . . . . . . . . . Walls Destroyed . | . . . . . . . . . . Machines Disabled . | . . . . . . . . . . Actions | -11 -10 -9 -8 -8 -8 -6 -6 -6 -6 --------- Run | Yrd Mat Mat Mat Sto Rec Fac Gar Fac Gar Total 7560 | 72 859 978 362 391 1809 1296 1123 397 273 Wait 1593 | . 33 210 39 102 724 396 57 17 15 Move 5214 | 50 743 651 280 219 1016 827 884 352 192 Hop . | . . . . . . . . . . Pick Up 58 | 3 16 13 4 6 3 5 6 2 . Fast Attach 44 | 7 2 2 4 2 1 4 10 2 10 Attach 23 | . 1 6 2 1 . 1 4 2 6 Detach 8 | . . 1 1 . 2 3 . 1 . Swap 63 | . 11 8 7 13 7 5 8 2 2 Drop 56 | . 11 11 4 9 12 2 7 . . Fire 332 | 11 29 74 19 36 31 22 87 . 23 Melee 105 | . 8 . 1 3 2 18 29 19 25 Ram 3 | . . . . . 3 . . . . Kick . | . . . . . . . . . . Crush 18 | 1 5 2 1 . 8 . 1 . . Escape Stasis 43 | . . . . . . 13 30 . . Rewire . | . . . . . . . . . . Trap . | . . . . . . . . . . Miscellaneous . | . . . . . . . . . . Route ------- -11/Scrapyard -10/Materials (discovered 4 exits: *Mat x3 / [*Min]) -9/Materials (discovered 4 exits: *Mat x2 / Min x2) -8/Materials -8/Storage -8/Recycling -6/Factory (discovered 4 exits: *Fac x2 / *Low / Gar) -6/Garrison (discovered 3 exits: *Fac x3) -6/Factory -6/Garrison History --------- Turn | Location | Event 4 | -11/Scrapyard | Discovered new exit (range 15) 123 | -11/Scrapyard | Entered Materials 300 | -10/Materials | Build established: Mutant 468 | -10/Materials | Discovered new exit (range 13) 781 | -10/Materials | Discovered new exit (range 3) 946 | -10/Materials | Discovered new exit (range 5) 1233 | -10/Materials | Discovered new exit (range 4) 1500 | -10/Materials | Entered another Materials area 1500 | -9/Materials | Evolved 2 slots: Utility x2 2117 | -9/Materials | Discovered new exit (range 11) 2439 | -9/Materials | Lost 3 parts (1n2u) 2846 | -9/Materials | Discovered new exit (range 16) 2870 | -9/Materials | Identified exit to Mines 3121 | -9/Materials | Entered another Materials area 3121 | -8/Materials | Evolved 2 slots: Propulsion x1, Utility x1 3591 | -8/Materials | Identified exit to Storage 3731 | -8/Materials | Entered Storage 3764 | -8/Storage | Identified exit to Recycling 4092 | -8/Storage | Garrison activated, responded to threat 4301 | -8/Storage | Used back door to open Recycling access 4315 | -8/Storage | Entered Recycling 4478 | -8/Recycling | Discovered new exit (range 7) 5134 | -8/Recycling | Scanned before Scraplab entrance 5145 | -8/Recycling | Angered Scraplab inhabitants 5239 | -8/Recycling | Found Prototype Device 5239 | -8/Recycling | Identified Scrap Engine 6758 | -8/Recycling | Identified exit to Factory 6759 | -8/Recycling | Entered Factory 6759 | -6/Factory | Evolved 4 slots: Power x1, Utility x2, Weapon x1 7034 | -6/Factory | Discovered new exit (range 20) 7109 | -6/Factory | Search patrols dispatched 7203 | -6/Factory | Discovered new exit (range 121) 7320 | -6/Factory | Build established: Tank 7393 | -6/Factory | Identified exit to Factory 7674 | -6/Factory | Fabricated Biometal Leg (x2) 7770 | -6/Factory | Central database locked down 7838 | -6/Factory | Discovered new exit (range 11) 7856 | -6/Factory | Identified exit to Lower Caves 8087 | -6/Factory | Build established: Construct 8191 | -6/Factory | Identified exit to Garrison 8193 | -6/Factory | Entered Garrison 8327 | -6/Garrison | Triggered checkpoint 8339 | -6/Garrison | Garrison Relay disabled 8349 | -6/Garrison | Lost 3 parts (1p1u1w) 8371 | -6/Garrison | Spotted B-75 Beast 8420 | -6/Garrison | Destroyed B-75 Beast 8441 | -6/Garrison | Triggered checkpoint 8472 | -6/Garrison | Triggered checkpoint 8744 | -6/Garrison | Discovered new exit (range 4) 8749 | -6/Garrison | Identified exit to Factory 8801 | -6/Garrison | Garrison Relay disabled 9095 | -6/Garrison | Lost 3 parts (1p1u1w) 9099 | -6/Garrison | Discovered exit to Factory (range 11) 9132 | -6/Garrison | Learned Factory security intel 9139 | -6/Garrison | Triggered checkpoint 9174 | -6/Garrison | Garrison Relay disabled 9220 | -6/Garrison | Found embedded Infiltrators 9309 | -6/Garrison | Build established: Mutant 9343 | -6/Garrison | Triggered checkpoint 9368 | -6/Garrison | Garrison Relay disabled 9384 | -6/Garrison | Installed Relay Interface Framework 9410 | -6/Garrison | Discovered exit to Factory (range 7) 9444 | -6/Garrison | P-60 Hacker assimilated allied P1-H18(x) 9449 | -6/Garrison | Garrison Relay disabled 9449 | -6/Garrison | Garrison Relay disabled 9452 | -6/Garrison | Garrison Relay disabled 9466 | -6/Garrison | Core integrity fell below 50% 9476 | -6/Garrison | Entered Factory 9500 | -6/Factory | Lost 3 parts (1p1u1w) 9826 | -6/Factory | First assault squad dispatched 9866 | -6/Factory | Central database locked down 9953 | -6/Factory | Identified exit to Garrison 9954 | -6/Factory | Entered Garrison 9983 | -6/Garrison | Spotted B-75 Beast 10016 | -6/Garrison | Triggered checkpoint 10056 | -6/Garrison | Destroyed B-75 Beast 10075 | -6/Garrison | Garrison Relay disabled 10102 | -6/Garrison | Core integrity fell below 20% 10168 | -6/Garrison | Lost 14 parts (2p4n3u5w) 10284 | -6/Garrison | Triggered checkpoint 10299 | -6/Garrison | Expanded RIF knowledge: Program Shield 10374 | -6/Garrison | Lost 3 parts (1p2n) 10405 | -6/Garrison | Triggered checkpoint 10424 | -6/Garrison | Destroyed by S-27 Virus with Autogun Last Messages --------------- Shielding. 10371_ Y3FS7KWY THJ0#XN>FV 10376_ Acquired Carbon-fiber Leg. 10378_ Acquired 10 matter. 10385_ Acquired Carbon-fiber Leg. 10388_ BKH3N&K CAGIE|G7H9BUH|FN 10389_ Acquired 10 matter. 10397_ Arm. Scrap Engine reinforces its armored shell (+100). 10405_ Beams of light sweep through the air. An alarm sounds. 10412_ Lgt. Fission Core+ destroyed. 10413_ Imp. Light Armor Plating destroyed. 10415_ AGC2JO#U=VWNIZ=U77DD3Q9CNWD2/